bitfinex-derivatives/quotes_SOLF0:USTF0_20250924
["timestamp","ask_amount","ask_price","bid_price","bid_amount"]
[1758679521348,1.38217995,216.29,216.22,7.7]
[1758679521547,1.38217995,216.28,216.22,7.7]
[1758679521846,7.49,216.3,216.22,7.7]
[1758679522048,1.38219179,216.29,216.22,7.7]
[1758679522238,1.38226463,216.28,216.22,7.7]
[1758679522438,7.49,216.3,216.22,7.7]
[1758679522647,1.38226463,216.29,216.22,7.7]
[1758679522947,1.38226463,216.28,216.22,7.7]
[1758679523151,7.49,216.3,216.22,7.7]
[1758679523342,1.38236749,216.29,216.22,7.7]
[1758679523538,1.38236749,216.28,216.22,7.7]
[1758679523742,7.49,216.3,216.22,7.7]
[1758679524045,1.3823702,216.29,216.22,7.7]
[1758679524247,1.3823702,216.28,216.22,7.7]
[1758679524451,11.6493,216.3,216.22,7.7]
[1758679524747,1.3824656,216.29,216.22,7.7]
[1758679524948,1.3824656,216.28,216.22,7.7]
[1758679525248,11.6493,216.3,216.22,7.7]
[1758679525442,1.38256925,216.29,216.22,7.7]
[1758679525642,1.38256925,216.28,216.22,7.7]
[1758679525843,7.49,216.3,216.22,7.7]
[1758679526044,1.38255859,216.29,216.22,7.7]
[1758679526239,7.49,216.3,216.22,7.7]
[1758679526447,1.38273845,216.29,216.22,7.7]
[1758679526650,1.38273845,216.28,216.22,7.7]
[1758679526838,1.38273845,216.27,216.22,7.7]
[1758679527044,7.58,216.3,216.22,7.7]
[1758679527344,7.58,216.28,216.18,7.23]
[1758679527541,1.38275729,216.27,216.18,7.23]
[1758679527737,5.54265729,216.27,216.18,7.23]
[1758679527951,4.1599,216.27,216.18,7.23]
[1758679528151,7.58,216.28,216.18,7.23]
[1758679528350,7.58,216.26,216.18,7.23]
[1758679528755,7.58,216.24,216.18,7.23]
[1758679529445,4.1607,216.23,216.15,7.23]
[1758679529748,7.58,216.25,216.15,7.23]
[1758679530252,7.58,216.25,216.16,7.23]
[1758679530950,7.58,216.25,216.17,4.1615]
[1758679531151,7.58,216.25,216.18,7.23]
[1758679536948,4.1599,216.27,216.18,11.3914]
[1758679537155,7.58,216.33,216.24,7.23]
[1758679537653,7.58,216.33,216.25,4.16]
[1758679537854,7.58,216.33,216.26,7.23]
[1758679538258,0.57483751,216.34,216.26,8.53563119]
[1758679538654,7.58,216.36,216.27,4.1596]
[1758679538855,7.58,216.36,216.28,7.23]
[1758679539958,0.80471731,216.37,216.29,1.30563119]
[1758679540165,8.88563119,216.41,216.3,7.23]
[1758679540352,0.80468009,216.39,216.3,7.23]
[1758679540960,0.80468009,216.39,216.32,1.30563119]
[1758679541561,8.38468009,216.39,216.32,1.30563119]
[1758679546863,8.38468009,216.39,216.3,7.23]
[1758679546864,1.30563119,216.38,216.23,7.23]
[1758679547062,7.58,216.34,216.25,1.30563119]
[1758679547261,7.58,216.34,216.25,8.53563119]
[1758679547463,11.7386,216.34,216.25,8.53563119]
[1758679548066,7.58,216.31,216.22,1.30563119]
[1758679548570,7.58,216.31,216.21,11.3908]
[1758679548767,4.1592,216.3,216.21,8.53563119]
[1758679549067,8.88563119,216.29,216.21,8.53563119]
[1758679549767,13.04513119,216.29,216.21,8.53563119]
[1758679551573,13.04513119,216.29,216.21,7.23]
[1758679554971,8.88563119,216.29,216.21,11.3909]
[1758679558380,13.04513119,216.29,216.21,11.3909]
[1758679560383,4.1597,216.28,216.21,7.23]
[1758679560582,7.15,216.27,216.21,7.23]
[1758679561376,7.15,216.25,216.17,7.26]
[1758679561680,7.15,216.22,216.17,7.26]
[1758679562374,1.30563119,216.23,216.17,7.26]
[1758679562574,7.15,216.22,216.13,7.26]
[1758679563184,1.30563119,216.2,216.13,7.26]
[1758679563377,8.45563119,216.2,216.13,7.26]
[1758679563777,4.1614,216.19,216.13,7.26]
[1758679563983,7.15,216.18,216.09,7.26]
[1758679564476,7.15,216.18,216.07,117.64156769]
[1758679564477,7.15,216.18,216.1,1.30563119]
[1758679564684,7.15,216.18,216.11,7.26]
[1758679565083,7.15,216.18,216.11,11.4227]
[1758679565879,4.1617,216.17,216.07,3.84156769]
[1758679566083,7.15,216.16,216.06,12.40719888]
[1758679566284,7.15,216.16,216.07,7.26]
[1758679566482,7.15,216.16,216.09,4.163]
[1758679567285,7.15,216.16,216.1,4.1628]
[1758679567473,8.45563119,216.16,216.05,3.84156769]
[1758679567674,7.15,216.09,216.0,7.26]
[1758679567882,1.30563119,216.07,216.0,7.26]
[1758679568885,7.15,216.06,216.0,7.26]
[1758679569087,7.15,216.03,215.96,7.26]
[1758679570484,1.30563119,216.06,215.96,7.26]
[1758679571290,8.45563119,216.07,215.96,8.56563119]
[1758679572784,8.45563119,216.07,215.99,4.1651]
[1758679572981,8.45563119,216.07,215.99,11.3651]
[1758679574482,8.45563119,216.07,215.99,7.2]
[1758679575184,7.61,216.03,215.93,5.47173119]
[1758679575380,7.61,216.03,215.94,7.2]
[1758679576888,11.7744,216.03,215.94,7.2]
[1758679580693,105.6744,216.03,215.94,7.2]
[1758679582999,125.8944,216.03,215.94,7.2]
[1758679586190,125.8944,216.03,215.94,11.366]
[1758679586691,11.7744,216.03,215.94,11.366]
[1758679586901,7.61,216.03,215.96,7.18]
[1758679587802,7.61,216.03,215.98,4.1652]
[1758679588003,7.61,216.03,215.99,7.18]
[1758679589000,8.324,216.16,215.99,7.18]
[1758679589001,1.30563119,216.07,215.99,11.345]
[1758679589398,8.92563119,216.08,215.99,11.345]
[1758679589606,39.72563119,216.08,215.99,11.345]
[1758679590303,39.72563119,216.08,215.99,7.18]
[1758679590304,7.62,216.08,215.99,7.18]
[1758679591305,8.92563119,216.08,215.99,7.18]
[1758679592305,8.92563119,216.08,216.0,1.30563119]
[1758679592506,8.92563119,216.08,216.01,7.18]
[1758679593402,8.92563119,216.08,216.02,4.1644]
[1758679594003,7.62,216.08,216.03,4.1642]
[1758679594199,5.46853119,216.11,216.04,7.18]
[1758679595110,1.36082444,216.1,216.04,7.18]
[1758679595310,5.46853119,216.11,216.04,7.18]
[1758679595505,1.36142288,216.1,216.04,7.18]
[1758679595708,5.46853119,216.11,216.04,7.18]
[1758679596011,1.36142288,216.1,216.04,7.18]
[1758679596212,1.36186855,216.09,216.03,11.3442]
[1758679596414,13.08853119,216.11,216.03,11.3442]
[1758679596714,1.36208552,216.1,216.03,11.3442]
[1758679596903,1.36208552,216.09,216.03,11.3442]
[1758679597101,1.36208552,216.09,215.98,2.04289737]
[1758679597102,1.3620934,216.08,215.99,7.18]
[1758679597307,8.9820934,216.07,215.99,7.18]
[1758679597502,1.3620934,216.06,215.99,7.18]
[1758679598910,5.5259934,216.06,215.99,7.18]
[1758679599111,4.1639,216.06,215.99,7.18]
[1758679599316,1.36406832,216.05,215.99,7.18]
[1758679599516,4.1639,216.06,215.99,7.18]
[1758679599714,1.36423746,216.05,215.99,7.18]
[1758679600021,4.1639,216.06,215.99,7.18]
[1758679600224,1.36423746,216.05,215.99,7.18]
[1758679600521,4.1639,216.06,215.99,7.18]
[1758679600714,1.36503534,216.05,215.99,7.18]
[1758679601020,4.1639,216.06,215.99,7.18]
[1758679601219,1.36503534,216.05,215.99,7.18]
[1758679601422,2.04289737,216.11,215.95,11.3458]
[1758679601423,7.62,216.03,215.95,11.3458]
[1758679601720,1.36503534,216.02,215.95,11.3458]
[1758679602524,5.52973534,216.02,215.95,7.18]
[1758679602821,1.36503534,216.01,215.95,7.18]
[1758679604519,1.36503534,216.0,215.95,7.18]
[1758679604723,37.42,216.04,215.95,7.18]
[1758679604925,1.36919588,216.03,215.96,4.1656]
[1758679605124,1.36919588,216.02,215.96,4.1656]
[1758679605320,1.36919588,216.01,215.97,7.18]
[1758679605625,4.1641,216.05,215.97,7.18]
[1758679605826,1.36926505,216.04,215.97,7.18]
[1758679606123,1.36926505,216.03,215.97,7.18]
[1758679606323,1.36926505,216.02,215.96,4.1656]
[1758679606620,1.36926505,216.01,215.97,7.18]
[1758679606829,4.1644,216.04,215.96,11.3456]
[1758679607124,1.37065435,216.03,215.96,11.3456]
[1758679607324,1.37065435,216.02,215.96,11.3456]
[1758679607626,1.37065435,216.01,215.97,7.18]
[1758679607917,1.37065435,216.0,215.96,4.1656]
[1758679608119,125.7439,216.06,215.97,7.18]
[1758679608322,1.37267906,216.05,215.97,7.18]
[1758679608521,1.37267906,216.04,215.97,7.18]
[1758679609221,1.37267906,216.03,215.97,7.18]
[1758679609417,1.37267906,216.02,215.97,7.18]
[1758679609616,1.37267906,216.01,215.97,7.18]
[1758679609823,1.37267906,216.0,215.96,4.1656]
[1758679610022,125.744,216.06,215.97,7.18]
[1758679610223,1.37361831,216.05,215.97,7.18]
[1758679610424,7.62,216.03,215.97,7.18]
[1758679610623,1.37361831,216.02,215.97,7.18]
[1758679611023,1.37361831,216.02,215.96,4.1656]
[1758679611420,1.37361831,216.02,215.97,7.18]
[1758679612331,1.37361831,216.02,215.96,4.1656]
[1758679612525,1.37361831,216.02,215.97,7.18]
[1758679613024,1.37361831,216.02,215.96,4.1656]
[1758679613229,1.37361831,216.02,215.97,7.18]
[1758679613430,1.37361831,216.02,215.97,7.5]
[1758679613630,1.37361831,216.02,215.96,4.1656]
[1758679614235,1.37361831,216.02,215.97,7.5]
[1758679614428,1.37361831,216.02,215.96,4.1656]
[1758679615228,1.37361831,216.02,215.97,7.5]
[1758679615434,1.37361831,216.01,215.97,7.5]
[1758679615633,11.7543,216.04,215.97,7.5]
[1758679615634,1.37361831,216.0,215.97,7.5]
[1758679615835,1.37361831,215.99,215.97,7.5]
[1758679616129,1.37669406,215.98,215.93,4.1662]
[1758679616322,1.37669406,215.97,215.93,4.1662]
[1758679616529,7.59,216.02,215.94,7.5]
[1758679616728,1.3766576,216.01,215.94,7.5]
[1758679617024,1.3766576,216.0,215.94,7.5]
[1758679617340,1.3766576,215.99,215.93,4.1662]
[1758679617633,1.3766576,215.98,215.94,7.5]
[1758679617834,1.3766576,215.97,215.94,7.5]
[1758679618134,4.1649,216.01,215.94,7.5]
[1758679618340,1.37653802,216.0,215.94,7.5]
[1758679618629,4.1649,216.01,215.94,7.5]
[1758679618630,1.37653802,215.99,215.94,7.5]
[1758679618828,11.7549,216.01,215.94,7.5]
[1758679618829,1.37653802,215.98,215.94,7.5]
[1758679619028,1.37653802,215.97,215.94,7.5]
[1758679619232,11.7549,216.01,215.94,7.5]
[1758679619433,1.37650481,216.0,215.94,7.5]
[1758679619626,1.37650481,215.99,215.93,4.1662]
[1758679619936,1.37650481,215.98,215.94,7.5]
[1758679620234,1.37650481,215.97,215.93,4.1662]
[1758679620437,11.7551,216.0,215.94,7.5]
[1758679620627,178.7316,216.06,215.94,7.5]
[1758679620628,7.59,215.98,215.94,7.5]
[1758679620828,2.04289737,216.03,215.94,7.5]
[1758679620829,1.38008208,215.97,215.94,7.5]
[1758679621024,1.38009816,215.96,215.94,7.5]
[1758679621225,7.59,215.97,215.94,7.5]
[1758679621434,1.37992006,215.96,215.94,7.5]
[1758679621632,7.59,215.97,215.94,7.5]
[1758679621937,1.37992006,215.96,215.91,4.1666]
[1758679622133,7.59,216.0,215.92,7.5]
[1758679622332,1.3798765,215.99,215.92,7.5]
[1758679622534,1.3798765,215.98,215.92,7.5]
[1758679622738,1.3798765,215.97,215.91,4.1666]
[1758679623030,1.3798765,215.96,215.92,7.5]
[1758679623338,7.59,216.0,215.92,7.5]
[1758679623534,1.3795862,215.99,215.92,7.5]
[1758679623734,1.3795862,215.98,215.92,7.5]
[1758679623934,1.3795862,215.97,215.91,4.1666]
[1758679624237,1.3795862,215.96,215.92,7.5]
[1758679624439,7.59,216.0,215.92,7.5]
[1758679624634,7.59,215.98,215.92,7.5]
[1758679624835,7.59,215.96,215.92,7.5]
[1758679625133,8.96942351,215.95,215.92,7.5]
[1758679625335,8.96942351,215.94,215.87,7.5]
[1758679625637,1.37942351,215.93,215.87,7.5]
[1758679625832,7.59,215.97,215.87,7.5]
[1758679626032,1.37905576,215.96,215.87,7.5]
[1758679626232,1.37905576,215.95,215.9,7.5]
[1758679626430,1.37905576,215.94,215.9,7.5]
[1758679626738,1.37905576,215.93,215.89,4.167]
[1758679626940,25.63947331,215.97,215.9,7.5]
[1758679627245,5.54457187,215.96,215.9,7.5]
[1758679627434,1.37867187,215.95,215.88,7.5]
[1758679627633,1.37867187,215.94,215.88,7.5]
[1758679627840,4.1659,215.96,215.88,7.5]
[1758679628139,1.37830849,215.95,215.88,7.5]
[1758679628337,1.37830849,215.94,215.88,7.5]
[1758679628537,4.166,215.95,215.88,7.5]
[1758679628740,70.47387331,215.97,215.88,7.5]
[1758679628741,8.89179839,215.94,215.88,7.5]
[1758679629037,5.46809839,215.93,215.88,7.5]
[1758679629238,7.59,215.91,215.88,7.5]
[1758679630142,4.1666,215.92,215.85,7.5]
[1758679630343,11.7566,215.92,215.85,7.5]
[1758679630541,1.30088599,215.91,215.85,7.5]
[1758679630741,11.7566,215.92,215.85,7.5]
[1758679630944,1.30088719,215.91,215.85,7.5]
[1758679631144,11.7566,215.92,215.85,7.5]
[1758679632539,7.38,215.96,215.85,7.5]
[1758679632745,1.29995353,215.95,215.85,7.5]
[1758679632940,1.29995353,215.94,215.85,7.5]
[1758679633136,113.5,215.96,215.85,7.5]
[1758679633343,1.29986693,215.95,215.85,7.5]
[1758679633642,1.29986693,215.94,215.85,7.5]
[1758679633844,7.38,215.95,215.85,7.5]
[1758679634046,7.38,215.93,215.85,7.5]
[1758679636844,4.1666,215.92,215.85,11.6678]
[1758679640749,121.36,215.93,215.85,7.5]
[1758679640750,4.167,215.9,215.85,7.5]
[1758679640958,7.38,215.89,215.8,7.4]
[1758679642044,5.46679908,215.88,215.8,7.4]
[1758679642347,4.1674,215.88,215.8,7.4]
[1758679644248,7.39,215.88,215.77,11.9094]
[1758679644451,7.39,215.86,215.77,11.9094]
[1758679645650,11.558,215.85,215.77,7.74]
[1758679647146,4.1682,215.84,215.77,7.74]
[1758679647748,7.39,215.83,215.77,7.74]
[1758679648651,7.39,215.87,215.77,7.74]
[1758679649849,7.39,215.87,215.79,7.74]
[1758679650957,4.1669,215.91,215.79,7.74]
[1758679651253,1.29327772,215.9,215.79,7.74]
[1758679651452,4.167,215.9,215.81,4.1684]
[1758679651753,4.167,215.9,215.82,7.74]
[1758679652252,7.39,215.91,215.82,11.9083]
[1758679652453,62.31,215.91,215.83,7.74]
[1758679653254,7.39,215.91,215.83,7.74]
[1758679653456,7.39,215.91,215.85,7.74]
[1758679654247,4.1661,215.94,215.85,11.9077]
[1758679654453,115.27374551,215.93,215.85,11.9077]
[1758679654658,113.98,215.93,215.85,11.9077]
[1758679655451,11.5561,215.94,215.85,11.9077]
[1758679655652,125.5361,215.94,215.86,7.74]
[1758679656053,125.5361,215.94,215.86,11.9075]
[1758679656249,1.29425222,215.93,215.86,11.9075]
[1758679656448,125.5361,215.94,215.86,11.9075]
[1758679656657,8.68436045,215.93,215.89,7.74]
[1758679656858,113.98,215.95,215.89,7.74]
[1758679657058,1.29435603,215.94,215.88,4.1672]
[1758679657364,113.98,215.95,215.88,11.9072]
[1758679657554,1.29470105,215.94,215.88,11.9072]
[1758679657755,113.98,215.95,215.88,11.9072]
[1758679657962,1.29470105,215.94,215.88,11.9072]
[1758679658153,113.98,215.95,215.88,11.9072]
[1758679658354,1.29497206,215.94,215.88,11.9072]
[1758679658555,113.98,215.95,215.88,11.9072]
[1758679658756,1.29507717,215.94,215.88,11.9072]
[1758679658963,113.98,215.95,215.88,11.9072]
[1758679659158,1.29507715,215.94,215.88,11.9072]
[1758679659359,8.68507715,215.93,215.89,7.74]
[1758679659559,7.39,215.93,215.89,7.74]
[1758679660661,7.39,215.93,215.88,4.1672]
[1758679660864,7.39,215.93,215.89,7.74]
[1758679662058,7.39,215.93,215.88,4.1672]
[1758679662557,7.39,215.93,215.89,7.74]
[1758679663066,7.39,215.93,215.88,4.1672]
[1758679663254,1.29694863,215.92,215.9,7.74]
[1758679663460,113.96,215.95,215.89,4.1669]
[1758679663657,1.29693749,215.94,215.89,4.1669]
[1758679663967,113.96,215.95,215.9,7.74]
[1758679664167,1.29693749,215.94,215.89,4.1669]
[1758679664367,113.96,215.95,215.9,7.74]
[1758679664568,1.29728458,215.94,215.9,7.74]
[1758679664862,11.5557,215.96,215.89,11.9069]
[1758679665067,115.23728551,215.95,215.89,11.9069]
[1758679665259,8.68728551,215.94,215.9,7.74]
[1758679665461,1.29728551,215.93,215.89,4.1669]
[1758679665657,113.94,215.95,215.89,4.1669]
[1758679665869,1.29730932,215.94,215.9,7.74]
[1758679666065,1.29730932,215.93,215.9,7.74]
[1758679666272,113.94,215.95,215.89,4.1669]
[1758679666572,1.29750161,215.94,215.91,7.74]
[1758679666767,113.94,215.95,215.9,4.1667]
[1758679666768,1.29750161,215.93,215.9,4.1667]
[1758679666972,121.33,215.95,215.91,7.74]
[1758679667271,1.29750157,215.94,215.91,7.74]
[1758679667569,1.29750157,215.93,215.91,7.74]
[1758679667771,121.33,215.95,215.91,7.74]
[1758679667968,1.29770246,215.94,215.9,4.1667]
[1758679668167,1.29770246,215.93,215.91,7.74]
[1758679668370,121.33,215.95,215.9,4.1667]
[1758679668569,1.29789762,215.94,215.9,4.1667]
[1758679668770,1.29789762,215.93,215.9,4.1667]
[1758679669072,121.33,215.95,215.91,7.74]
[1758679669274,1.29789762,215.94,215.9,4.1667]
[1758679669469,1.29789762,215.93,215.91,7.74]
[1758679669772,121.33,215.95,215.9,4.1667]
[1758679669972,1.29808647,215.94,215.9,4.1667]
[1758679670168,1.29808647,215.93,215.91,4.1665]
[1758679670369,364.14387331,215.97,215.91,11.9065]
[1758679670577,115.21809724,215.96,215.89,7.74]
[1758679670775,1.29809724,215.95,215.89,7.74]
[1758679670975,1.29809724,215.94,215.89,7.74]
[1758679671180,113.92,215.96,215.89,7.74]
[1758679671479,1.29801605,215.95,215.91,1.30961192]
[1758679671779,128.01501254,215.99,215.92,7.74]
[1758679671976,1.29801044,215.98,215.92,7.74]
[1758679672176,1.29801044,215.97,215.91,1.30961192]
[1758679672378,1.29801044,215.96,215.91,1.30961192]
[1758679672581,128.01501254,215.99,215.92,7.74]
[1758679672777,1.29780989,215.98,215.94,7.74]
[1758679673077,1.29780989,215.97,215.94,7.74]
[1758679673284,1.29780989,215.96,215.93,5.47581192]
[1758679673479,128.01501254,215.99,215.93,12.76581192]
[1758679673780,1.2976285,215.98,215.94,7.29]
[1758679673978,1.2976285,215.97,215.94,7.29]
[1758679674174,1.2976285,215.96,215.93,5.47581192]
[1758679674378,128.01501254,215.99,215.93,5.47581192]
[1758679674681,1.29741796,215.98,215.93,5.47581192]
[1758679674886,1.29741796,215.97,215.93,5.47581192]
[1758679675073,128.01501254,215.99,215.93,12.76581192]
[1758679675271,1.29741675,215.98,215.94,7.29]
[1758679675471,7.62,215.96,215.87,7.29]
[1758679675677,8.91720453,215.95,215.91,7.29]
[1758679675876,7.62,215.95,215.91,7.29]
[1758679677580,4.1658,215.96,215.91,7.29]
[1758679677783,7.62,215.94,215.87,7.29]
[1758679678087,1.29700027,215.93,215.87,7.29]
[1758679679784,4.1666,215.92,215.87,7.29]
[1758679679989,69.2,215.93,215.86,7.29]
[1758679681690,7.62,215.89,215.85,1.30961192]
[1758679682081,4.167,215.9,215.84,1.30961192]
[1758679682582,4.1661,215.94,215.88,7.29]
[1758679683992,7.62,215.94,215.84,1.30961192]
[1758679684194,7.62,215.94,215.84,8.59961192]
[1758679684384,8.92961192,215.94,215.84,8.59961192]
[1758679684692,4.1666,215.92,215.86,4.1675]
[1758679685087,7.62,215.91,215.84,12.76761192]
[1758679685681,7.62,215.91,215.84,8.59961192]
[1758679686298,7.62,215.91,215.86,4.1675]
[1758679686485,8.92961192,215.91,215.84,7.29]
[1758679687288,4.167,215.9,215.84,11.458]
[1758679687488,7.62,215.9,215.81,7.29]
[1758679688195,1.30961192,215.91,215.81,7.29]
[1758679688196,7.62,215.88,215.81,7.29]
[1758679688384,25.38,215.9,215.81,7.29]
[1758679689096,7.62,215.89,215.81,7.29]
[1758679689299,8.92961192,215.89,215.81,7.29]
[1758679689688,8.92961192,215.89,215.79,4.1689]
[1758679689893,8.92961192,215.89,215.77,1.30961192]
[1758679690190,11.7879,215.85,215.76,11.4594]
[1758679690395,11.7879,215.85,215.76,7.29]
[1758679690900,4.1681,215.84,215.78,4.1691]
[1758679691487,1.30961192,215.89,215.78,1.30961192]
[1758679691693,57.2,215.88,215.79,7.29]
[1758679692200,8.92961192,215.89,215.79,7.29]
[1758679692693,8.92961192,215.89,215.79,11.13906653]
[1758679692694,7.62,215.89,215.79,11.13906653]
[1758679692898,7.62,215.89,215.8,7.29]
[1758679693895,7.62,215.89,215.83,4.1681]
[1758679694894,11.7872,215.89,215.83,4.1681]
[1758679696103,11.7872,215.89,215.83,11.2981]
[1758679698002,11.7872,215.89,215.83,7.13]
[1758679698203,7.56,215.87,215.83,7.13]
[1758679700304,4.1674,215.88,215.83,7.13]
[1758679700503,1.30961192,215.89,215.83,7.13]
[1758679700801,8.86961192,215.89,215.83,7.13]
[1758679701001,113.88,215.91,215.83,7.13]
[1758679701906,118.0467,215.91,215.84,4.1679]
[1758679702611,4.167,215.9,215.84,4.1679]
[1758679705508,8.86961192,215.92,215.83,7.56]
[1758679705509,7.56,215.92,215.83,7.56]
[1758679705708,7.56,215.92,215.85,7.56]
[1758679706004,7.62,215.95,215.85,7.56]
[1758679706210,59.24,215.95,215.88,11.7271]
[1758679706605,59.24,215.95,215.88,7.56]
[1758679707307,7.62,215.95,215.89,4.1669]
[1758679709201,7.62,215.95,215.91,7.56]
[1758679709408,1.30961192,215.97,215.89,7.56]
[1758679709712,135.57501254,215.99,215.89,7.56]
[1758679710511,1.30961192,215.97,215.89,7.56]
[1758679710708,7.62,215.96,215.89,7.56]
[1758679712512,7.62,215.96,215.87,5.15867845]
[1758679712513,132.12021254,215.99,215.93,4.1661]
[1758679712708,127.95501254,215.99,215.91,7.56]
[1758679712918,7.62,215.98,215.91,7.56]
[1758679713816,11.7854,215.98,215.91,11.7266]
[1758679715518,11.7854,215.98,215.92,4.1663]
[1758679716910,127.93501254,215.99,215.93,4.1661]
[1758679717111,135.55501254,215.99,215.93,4.1661]
[1758679718519,4.1653,215.98,215.92,7.56]
[1758679719923,4.1653,215.98,215.92,11.7264]
[1758679722219,7.62,215.96,215.92,7.56]
[1758679722425,7.62,215.98,215.88,7.56]
[1758679724025,11.786,215.95,215.88,11.7272]
[1758679724620,4.1663,215.94,215.88,11.7272]
[1758679725321,7.62,215.95,215.88,11.7272]
[1758679725924,11.786,215.95,215.88,11.7272]
[1758679727726,7.62,215.92,215.88,7.56]
[1758679728127,7.62,215.94,215.88,7.56]
[1758679729324,7.62,215.91,215.83,11.40906653]
[1758679730530,7.62,215.91,215.83,7.56]
[1758679731030,11.7872,215.89,215.83,7.56]
[1758679732129,72.4392,215.9,215.8,3.84906653]
[1758679732335,7.62,215.86,215.78,11.40906653]
[1758679732531,121.42,215.86,215.78,11.40906653]
[1758679733137,7.62,215.85,215.78,7.56]
[1758679734230,121.42,215.85,215.78,7.56]
[1758679734833,4.1683,215.83,215.78,7.56]
[1758679735934,7.66,215.82,215.78,7.56]
[1758679736333,4.1683,215.83,215.78,7.56]
[1758679736534,7.66,215.82,215.78,7.56]
[1758679737439,7.66,215.84,215.78,7.56]
[1758679738931,11.8282,215.84,215.78,7.56]
[1758679739333,7.66,215.84,215.78,7.56]
[1758679739540,23.14,215.85,215.78,7.56]
[1758679740041,48.74,215.86,215.78,7.56]
[1758679740845,48.74,215.86,215.79,4.169]
[1758679741239,52.9078,215.86,215.79,4.169]
[1758679741947,7.66,215.87,215.79,4.169]
[1758679742148,51.88,215.86,215.79,4.169]
[1758679742843,7.66,215.85,215.79,4.169]
[1758679744352,7.66,215.85,215.8,7.54]
[1758679744544,7.66,215.85,215.81,7.54]
[1758679744844,7.66,215.85,215.8,4.1686]
[1758679745043,7.66,215.85,215.81,4.1684]
[1758679745248,82.38496248,215.88,215.82,7.54]
[1758679745443,7.66,215.89,215.82,7.54]
[1758679745444,121.48,215.89,215.82,7.54]
[1758679745952,4.1674,215.88,215.82,7.54]
[1758679748640,4.1676,215.87,215.82,7.54]
[1758679748949,7.66,215.86,215.82,7.54]
[1758679751153,7.66,215.86,215.8,7.54]
[1758679752745,11.8277,215.86,215.8,7.54]
[1758679753448,7.12,215.83,215.77,7.59]
[1758679754549,7.12,215.81,215.73,3.84906653]
[1758679754749,7.12,215.81,215.74,7.59]
[1758679755141,11.2887,215.81,215.74,7.59]
[1758679756642,11.2887,215.81,215.74,11.7598]
[1758679757242,4.1689,215.8,215.74,11.7598]
[1758679757447,71.9624,215.82,215.73,3.84906653]
[1758679757647,71.9624,215.82,215.7,7.59]
[1758679757854,7.12,215.79,215.7,7.59]
[1758679758654,4.1697,215.76,215.7,11.7606]
[1758679761460,4.1692,215.78,215.71,4.1704]
[1758679762753,20.68887862,215.79,215.7,7.59]
[1758679764855,4.1692,215.78,215.72,4.1703]
[1758679765447,11.2792,215.78,215.72,4.1703]
[1758679765759,7.11,215.78,215.75,7.05]
[1758679766459,13.56887862,215.79,215.75,7.05]
[1758679766649,7.11,215.78,215.75,7.05]
[1758679768054,7.11,215.78,215.74,4.17]
[1758679768255,0.80686297,215.79,215.74,4.17]
[1758679768451,7.11,215.78,215.74,4.17]
[1758679768852,0.80686297,215.79,215.74,4.17]